bitfinex/quotes_SOLUSD_20250308
["timestamp","ask_amount","ask_price","bid_price","bid_amount"]
[1741475185110,0.03,137.73,137.72,28.94387005]
[1741475188428,0.03,137.73,137.72,47.73568048]
[1741475188604,0.03,137.75,137.74,38.64964886]
[1741475188807,0.03,137.75,137.74,60.33241891]
[1741475189019,0.03,137.75,137.74,20.0]
[1741475189213,0.03,137.75,137.72,28.94387005]
[1741475189423,0.03,137.75,137.72,21.68277005]
[1741475189617,0.03,137.75,137.74,20.0]
[1741475190907,0.03,137.75,137.73,21.68277005]
[1741475192228,0.03,137.75,137.73,28.94297005]
[1741475192419,0.03,137.75,137.74,21.68277005]
[1741475193205,0.03,137.75,137.74,34.62905766]
[1741475194332,0.03,137.75,137.74,41.88905766]
[1741475195729,0.03,137.76,137.74,60.53870652]
[1741475196027,0.03,137.76,137.75,36.28415766]
[1741475196611,0.03,137.77,137.75,89.70502575]
[1741475196813,0.03,137.77,137.76,34.62905766]
[1741475197027,0.03,137.77,137.76,20.0]
[1741475197226,0.03,137.77,137.76,54.62905766]
[1741475197615,0.03,137.77,137.76,89.25811532]
[1741475197812,0.03,137.82,137.8,20.0]
[1741475198008,0.03,137.82,137.81,20.0]
[1741475198218,34.65905766,137.82,137.77,41.88745766]
[1741475199940,34.65905766,137.82,137.77,34.62905766]
[1741475200132,34.62905766,137.81,137.75,41.88845766]
[1741475200334,34.62905766,137.8,137.75,34.62905766]
[1741475200839,34.62905766,137.79,137.77,20.0]
[1741475201224,34.62905766,137.8,137.77,20.0]
[1741475201741,41.88545766,137.81,137.76,34.62905766]
[1741475201935,81.33,137.82,137.77,34.62905766]
[1741475202122,0.03,137.82,137.78,34.62905766]
[1741475202641,34.62905766,137.81,137.76,41.88795766]
[1741475203023,0.03,137.82,137.77,34.62905766]
[1741475203623,34.65905766,137.82,137.77,34.62905766]
[1741475203846,41.91495766,137.82,137.76,34.62905766]
[1741475204544,34.62905766,137.81,137.75,34.62905766]
[1741475204720,34.62905766,137.76,137.72,0.033]
[1741475204920,34.62905766,137.74,137.72,0.033]
[1741475205125,34.62905766,137.76,137.72,0.033]
[1741475205339,34.62905766,137.76,137.72,7.294]
[1741475205744,34.62905766,137.77,137.72,7.294]
[1741475205940,34.62905766,137.77,137.72,20.033]
[1741475206147,34.62905766,137.77,137.72,54.66205766]
[1741475207331,115.92905766,137.78,137.72,54.66205766]
[1741475207846,41.26905766,137.8,137.74,34.62905766]
[1741475208145,41.26905766,137.8,137.75,7.2595]
[1741475208327,34.62905766,137.79,137.73,41.88955766]
[1741475209148,34.62905766,137.79,137.72,20.033]
[1741475209149,34.62905766,137.77,137.72,61.92295766]
[1741475209447,34.62905766,137.78,137.72,61.92295766]
[1741475210621,0.03,137.82,137.8,20.0]
[1741475212556,0.03,137.82,137.8,27.2566]
[1741475213644,0.03,137.82,137.8,61.88565766]
[1741475213829,0.03,137.82,137.81,34.62905766]
[1741475215350,0.03,137.82,137.81,41.88535766]
[1741475216658,0.03,137.82,137.81,7.2563]
[1741475221357,0.03,137.82,137.75,18.1479]
[1741475221555,0.03,137.82,137.8,20.0]
[1741475221743,0.03,137.82,137.81,21.63395906]
[1741475222955,0.03,137.82,137.81,28.89025906]
[1741475223146,0.03,137.84,137.83,41.63395906]
[1741475224055,0.03,137.87,137.83,41.63395906]
[1741475224242,0.03,137.87,137.86,41.63395906]
[1741475225172,0.03,137.87,137.86,48.88765906]
[1741475226350,0.03,137.87,137.86,67.53730792]
[1741475227157,0.03,137.87,137.86,41.63395906]
[1741475227338,0.03,137.87,137.86,48.88765906]
[1741475230475,0.0001,137.87,137.86,69.22116949]
[1741475230650,0.0001,137.87,137.86,70.30864185]
[1741475230846,0.0001,137.87,137.86,69.22116949]
[1741475232069,0.0001,137.87,137.86,70.30874255]
[1741475233566,0.0001,137.87,137.86,69.22116949]
[1741475234947,0.0001,137.87,137.86,70.30864878]
[1741475235666,0.03,137.93,137.87,0.14216157]
[1741475235884,0.03,137.93,137.92,21.63395906]
[1741475236376,0.0001,137.93,137.92,21.63395906]
[1741475236671,0.0001,137.93,137.92,40.28360792]
[1741475236847,0.0001,137.93,137.92,47.53410792]
[1741475237168,0.0001,137.93,137.92,28.88445906]
[1741475238864,0.0001,137.93,137.92,47.53410792]
[1741475244071,0.0001,137.93,137.92,28.88445906]
[1741475244280,0.0001,137.93,137.89,6.64]
[1741475244455,0.0001,137.93,137.9,21.63395906]
[1741475244659,0.0001,137.93,137.92,20.0]
[1741475245273,0.0001,137.93,137.92,41.63395906]
[1741475245459,0.0001,137.93,137.91,21.63395906]
[1741475245666,0.0001,137.93,137.92,21.63395906]
[1741475247662,0.0001,137.93,137.92,28.88445906]
[1741475248269,0.0001,137.93,137.92,47.53410792]
[1741475250472,0.0001,137.93,137.92,25.90014886]
[1741475250684,0.0001,137.93,137.92,47.53410792]
[1741475251085,0.0001,137.93,137.92,28.88445906]
[1741475252074,0.0001,137.93,137.91,0.033]
[1741475252281,0.0001,137.93,137.92,20.0]
[1741475252478,0.0001,137.93,137.92,41.63395906]
[1741475252981,0.0001,137.93,137.92,20.0]
[1741475254969,0.0001,137.93,137.92,27.2505]
[1741475256159,0.0001,137.93,137.92,48.88445906]
[1741475257062,0.0001,137.93,137.92,41.63395906]
[1741475257273,0.0001,137.93,137.92,7.2505]
[1741475258481,0.0001,137.93,137.92,20.0]
[1741475261891,21.63405906,137.93,137.91,0.033]
[1741475262282,0.0001,137.93,137.91,0.033]
[1741475266399,0.0001,137.93,137.91,21.66695906]
[1741475266603,0.0001,137.93,137.92,21.63395906]
[1741475266779,0.0001,137.93,137.92,41.63395906]
[1741475267697,0.0001,137.93,137.92,48.93675003]
[1741475268083,0.0001,137.93,137.92,27.30279097]
[1741475268903,0.0001,137.93,137.92,48.93675003]
[1741475270703,0.0001,137.93,137.92,47.58639889]
[1741475275079,0.0001,137.93,137.92,28.93675003]
[1741475279514,0.0001,137.93,137.92,7.30279097]
[1741475284495,0.0001,137.93,137.92,0.05229097]
[1741475286004,0.0001,137.93,137.92,20.05229097]
[1741475287616,0.0001,137.93,137.92,27.30279097]
[1741475288617,0.0001,137.93,137.92,20.05229097]
[1741475288816,0.0001,137.93,137.92,0.05229097]
[1741475293898,0.0001,137.93,137.92,7.30279097]
[1741475294520,0.0001,137.93,137.92,21.1258746]
[1741475298023,0.0001,137.93,137.92,7.30279097]
[1741475298321,0.0001,137.93,137.92,0.05229097]
[1741475298724,13.82318363,137.93,137.92,0.05229097]
[1741475301922,21.07318363,137.93,137.92,0.05229097]
[1741475306625,39.72283249,137.93,137.92,0.05229097]
[1741475306830,47.47723249,137.93,137.92,0.05229097]
[1741475307019,60.77723249,137.93,137.92,0.05229097]
[1741475312738,27.12318363,137.93,137.92,0.05229097]
[1741475313923,13.3001,137.93,137.92,0.05229097]
[1741475314738,27.12318363,137.93,137.92,0.05229097]
[1741475314945,13.82318363,137.93,137.92,0.05229097]
[1741475319326,39.72283249,137.93,137.92,0.05229097]
[1741475320034,13.82318363,137.93,137.92,0.05229097]
[1741475324022,0.0001,137.93,137.92,0.05229097]
[1741475326548,13.82318363,137.93,137.92,0.05229097]
[1741475329650,0.0001,137.93,137.92,0.05229097]
[1741475336435,3.22412034,137.92,137.91,0.033]
[1741475338766,17.04720397,137.92,137.91,0.033]
[1741475340874,67.04720397,137.92,137.91,0.033]
[1741475341040,17.04720397,137.92,137.91,0.033]
[1741475341443,3.22412034,137.92,137.91,0.033]
[1741475341761,17.04720397,137.92,137.91,0.033]
[1741475342153,3.22412034,137.92,137.91,0.033]
[1741475342357,17.04720397,137.92,137.91,0.033]
[1741475343171,24.29770397,137.92,137.91,0.033]
[1741475343677,3.22412034,137.92,137.91,0.033]
[1741475344852,17.04720397,137.92,137.91,0.033]
[1741475345051,24.29770397,137.92,137.91,0.033]
[1741475346858,17.04720397,137.92,137.91,0.033]
[1741475347052,3.22412034,137.92,137.91,0.033]
[1741475349483,17.04720397,137.92,137.91,0.033]
[1741475351885,3.22412034,137.92,137.91,0.033]
[1741475354065,3.25412034,137.92,137.91,0.033]
[1741475357263,3.25412034,137.92,137.91,13.85608363]
[1741475358395,3.25412034,137.92,137.91,21.10718363]
[1741475358967,2.034e-05,137.92,137.91,39.75683249]
[1741475363394,2.034e-05,137.92,137.91,21.10718363]
[1741475369799,2.034e-05,137.92,137.91,39.75683249]
[1741475372576,2.2274052,137.96,137.94,20.0]
[1741475372882,2.2274052,137.96,137.95,13.82308363]
[1741475374675,2.2274052,137.96,137.95,21.07208363]
[1741475374891,1.2274052,137.96,137.95,21.07208363]
[1741475376093,1.2274052,137.96,137.95,13.82308363]
[1741475376600,1.2274052,137.96,137.95,21.07208363]
[1741475377288,1.2574052,137.96,137.95,21.07208363]
[1741475388411,1.2574052,137.96,137.93,21.07308363]
[1741475393711,1.2574052,137.96,137.92,27.39338363]
[1741475393894,15.08048883,137.96,137.91,13.85608363]
[1741475394295,1.2574052,137.96,137.92,13.82308363]
[1741475394916,1.2574052,137.96,137.93,13.82308363]
[1741475395300,1.2574052,137.96,137.92,13.82308363]
[1741475396004,1.2574052,137.96,137.91,0.033]
[1741475396198,1.2574052,137.96,137.92,13.82308363]
[1741475397090,1.2574052,137.96,137.92,41.07318363]
[1741475397598,1.2574052,137.96,137.91,0.033]
[1741475397599,13.82308363,137.93,137.91,0.033]
[1741475398010,13.82308363,137.94,137.91,0.033]
[1741475400315,13.82308363,137.93,137.91,0.033]
[1741475402197,13.82308363,137.94,137.91,0.033]
[1741475402615,7.2491,137.95,137.91,0.033]
[1741475402616,13.82308363,137.95,137.91,0.033]
[1741475403223,13.82308363,137.94,137.91,0.033]
[1741475405826,13.82308363,137.93,137.91,0.033]
[1741475406416,13.82308363,137.94,137.91,0.033]
[1741475406803,13.82308363,137.95,137.91,0.033]
[1741475407217,13.82308363,137.93,137.91,0.033]
[1741475407826,21.07318363,137.93,137.91,0.033]
[1741475410038,13.82308363,137.93,137.91,0.033]
[1741475411422,13.82308363,137.94,137.91,0.033]
[1741475411917,13.82308363,137.95,137.91,0.033]
[1741475412303,13.82308363,137.94,137.91,0.033]
[1741475414428,13.82308363,137.92,137.91,0.033]
[1741475416605,95.12308363,137.94,137.91,0.033]
[1741475416805,13.82308363,137.93,137.91,0.033]
[1741475417729,13.82308363,137.92,137.91,0.033]
[1741475419901,21.07358363,137.92,137.91,0.033]
[1741475420602,13.82308363,137.92,137.91,0.033]
[1741475420836,13.82308363,137.93,137.91,0.033]
[1741475421524,95.12308363,137.94,137.91,0.033]
[1741475422411,13.82308363,137.92,137.91,0.033]
[1741475423916,21.07338363,137.93,137.91,0.033]
[1741475424119,13.82308363,137.93,137.91,0.033]
[1741475425840,95.12308363,137.94,137.91,0.033]
[1741475426441,81.3,137.94,137.91,0.033]
[1741475427620,13.82308363,137.93,137.91,0.033]
[1741475428134,13.82308363,137.92,137.91,0.033]
[1741475429036,13.82308363,137.93,137.91,0.033]
[1741475429951,21.07328363,137.93,137.91,0.033]
[1741475430842,13.82308363,137.93,137.91,0.033]
[1741475433516,21.07308363,137.93,137.91,0.033]
[1741475434961,13.82308363,137.92,137.91,0.033]
[1741475435621,63.82308363,137.92,137.91,0.033]
[1741475436622,71.07358363,137.92,137.91,0.033]
[1741475437551,171.02323249,137.92,137.91,0.033]
[1741475437734,89.72323249,137.92,137.91,0.033]
[1741475438051,97.89173249,137.92,137.91,0.033]
[1741475439952,97.89173249,137.92,137.82,7.2555]
[1741475439953,50.0,137.88,137.82,7.2555]
[1741475440151,13.82308363,137.85,137.82,7.2555]
[1741475440459,13.82308363,137.88,137.83,13.82308363]
[1741475441354,13.82308363,137.88,137.82,21.07858363]
[1741475441533,13.82308363,137.87,137.82,21.07858363]
[1741475442118,13.82308363,137.87,137.81,0.033]
[1741475442119,13.82308363,137.85,137.81,0.033]
[1741475443323,81.3,137.88,137.81,0.033]
[1741475443324,13.82308363,137.86,137.81,0.033]
[1741475443627,13.82308363,137.86,137.81,13.85608363]
[1741475445444,13.82308363,137.86,137.81,21.11188363]
[1741475446460,13.82308363,137.86,137.81,7.2888]
[1741475447060,13.82308363,137.85,137.81,0.033]
[1741475447263,13.82308363,137.84,137.81,0.033]
[1741475448664,13.82308363,137.83,137.81,0.033]
[1741475450767,20.16308363,137.84,137.81,0.033]
[1741475451265,70.16308363,137.84,137.81,0.033]
[1741475452267,13.82308363,137.83,137.81,0.033]
[1741475453278,13.82308363,137.82,137.81,0.033]
[1741475454981,13.82308363,137.83,137.81,0.033]
[1741475461598,151.46308363,137.84,137.81,0.033]
[1741475461762,81.3,137.84,137.81,0.033]
[1741475462792,81.3,137.84,137.81,7.2893]
[1741475463210,81.3,137.84,137.81,40.86748363]
[1741475463364,13.82308363,137.87,137.82,13.82308363]
[1741475464990,63.82308363,137.88,137.82,13.82308363]
[1741475465297,63.82308363,137.88,137.83,7.2553]
[1741475466705,13.82308363,137.87,137.83,7.2553]
[1741475467707,63.82308363,137.88,137.83,7.2553]
[1741475468581,13.82308363,137.87,137.83,7.2553]
[1741475468787,13.82308363,137.86,137.82,7.2556]
[1741475469980,50.0,137.88,137.82,21.07868363]
[1741475470188,13.82308363,137.87,137.82,21.07868363]
[1741475471205,13.82308363,137.87,137.82,39.21828363]
[1741475471508,63.82308363,137.88,137.82,39.21828363]
[1741475472412,13.82308363,137.87,137.82,39.21828363]
[1741475475280,50.0,137.88,137.82,39.21828363]
[1741475475497,63.82308363,137.88,137.82,39.21828363]
[1741475475885,13.82308363,137.87,137.82,25.3952]
[1741475476093,13.82308363,137.87,137.82,7.2556]
[1741475476613,10.48777658,137.87,137.82,7.2556]
[1741475479616,81.3,137.89,137.83,13.82308363]
[1741475479617,95.12308363,137.89,137.83,13.82308363]
[1741475480208,13.82308363,137.88,137.83,13.82308363]
[1741475481524,13.82308363,137.88,137.84,7.2547]
[1741475482484,13.85308363,137.88,137.84,7.2547]
[1741475483715,13.85308363,137.88,137.83,7.2553]
[1741475485983,13.82308363,137.86,137.83,7.2553]
[1741475486295,13.82308363,137.86,137.82,7.2556]
[1741475487186,13.82308363,137.87,137.82,7.2556]
[1741475488685,13.82308363,137.86,137.82,7.2556]
[1741475491607,13.82308363,137.87,137.82,7.2556]
[1741475494830,50.0,137.86,137.82,7.2556]
[1741475495806,13.85308363,137.87,137.82,7.2556]
[1741475496533,0.03,137.87,137.82,21.07868363]
[1741475498607,13.85308363,137.87,137.82,7.2556]
[1741475500630,0.03,137.87,137.82,7.2556]
[1741475504410,13.85308363,137.87,137.82,7.2556]
[1741475506040,0.03,137.87,137.82,7.2556]
[1741475506417,13.85308363,137.87,137.82,7.2556]
[1741475510837,0.03,137.87,137.82,7.2556]
[1741475513544,0.03,137.87,137.82,21.07868363]
[1741475513729,0.03,137.87,137.83,13.82308363]
[1741475514338,0.03,137.87,137.82,39.21828363]
[1741475519345,0.03,137.87,137.83,13.82308363]
[1741475519533,0.03,137.87,137.85,1.5816]
[1741475520833,0.03,137.87,137.86,7.2537]
[1741475521349,0.03,137.87,137.86,21.07678363]
[1741475522773,0.0001,137.88,137.86,39.72643249]
[1741475522944,0.0001,137.88,137.87,15.40468363]
[1741475523259,0.03,137.91,137.9,20.0]
[1741475523423,0.03,137.91,137.9,33.82308363]
[1741475524051,0.03,137.91,137.9,20.0]
[1741475526356,0.03,137.91,137.87,14.8755]
[1741475526750,0.03,137.91,137.87,28.69858363]
[1741475526960,0.03,137.91,137.87,22.65778363]
[1741475530267,0.03,137.91,137.87,1.5816]
[1741475530442,13.85308363,137.91,137.87,1.5816]
[1741475530641,0.03,137.91,137.87,8.8347]
[1741475531267,0.03,137.91,137.87,22.65778363]
[1741475531745,0.03,137.91,137.87,42.65778363]
[1741475533460,0.03,137.91,137.89,13.82308363]
[1741475533639,0.03,137.91,137.9,33.82308363]
[1741475534252,0.03,137.91,137.9,41.07468363]
[1741475544778,1.2574052,137.96,137.94,13.82308363]
[1741475546769,1.2574052,137.96,137.95,7.249]
[1741475550652,1.2574052,137.96,137.93,13.82308363]
[1741475550973,1.2574052,137.96,137.92,42.64218363]
[1741475551976,1.2574052,137.96,137.93,13.82308363]
[1741475552685,1.2574052,137.96,137.93,21.07258363]
[1741475553852,1.2574052,137.96,137.93,7.2495]
[1741475556182,15.08048883,137.96,137.93,20.0]
[1741475556474,22.32918883,137.96,137.9,27.39448363]
[1741475557382,22.32918883,137.96,137.9,21.07448363]
[1741475558776,13.82308363,137.94,137.89,20.0]
[1741475559075,13.82308363,137.91,137.88,0.033]
[1741475562571,13.82308363,137.92,137.88,0.033]
[1741475563074,95.12308363,137.94,137.88,13.85608363]
[1741475564284,95.12308363,137.94,137.88,0.033]
[1741475564285,13.82308363,137.93,137.88,0.033]
[1741475564485,13.82308363,137.92,137.88,7.2856]
[1741475566175,13.82308363,137.93,137.88,7.2856]
[1741475566576,13.82308363,137.93,137.88,13.85608363]
[1741475566786,95.12308363,137.94,137.88,13.85608363]
[1741475567401,102.37258363,137.94,137.88,13.85608363]
[1741475567787,13.82308363,137.93,137.88,13.85608363]
[1741475569559,88.5495,137.94,137.88,7.2852]
[1741475569560,13.82308363,137.92,137.88,7.2852]
[1741475574571,95.12308363,137.94,137.88,21.10828363]
[1741475574892,13.82308363,137.94,137.88,21.10828363]
[1741475575218,13.82308363,137.93,137.88,21.10828363]
[1741475575775,13.85308363,137.93,137.88,21.10828363]
[1741475577381,0.03,137.93,137.88,21.10828363]
[1741475577578,0.03,137.93,137.91,13.82308363]
[1741475577778,0.03,137.93,137.91,33.82308363]
[1741475578298,0.03,137.93,137.91,20.0]
[1741475579569,0.03,137.93,137.89,8.7975]
[1741475580899,13.85308363,137.93,137.88,21.10858363]
[1741475581097,0.03,137.93,137.88,21.10858363]
[1741475581694,0.03,137.93,137.9,13.82308363]
[1741475583391,0.03,137.93,137.91,7.2511]
[1741475583589,0.03,137.93,137.91,21.07418363]
[1741475583995,0.03,137.93,137.92,13.82308363]
[1741475585992,0.03,137.93,137.92,22.65638363]
[1741475586205,0.03,137.93,137.92,7.2505]
[1741475588176,0.03,137.93,137.92,21.07358363]
[1741475590404,0.0001,137.93,137.92,21.07358363]
[1741475591309,0.0001,137.93,137.92,39.72323249]
[1741475591682,0.0001,137.93,137.92,41.44819406]
[1741475592004,0.0001,137.93,137.92,42.53520096]
[1741475592205,5.2e-06,137.96,137.95,20.0]
[1741475592397,5.2e-06,137.96,137.95,41.07208363]
[1741475594273,0.03,138.01,137.96,0.14216157]
[1741475594493,0.03,138.01,138.0,33.82308363]
[1741475595386,0.03,138.01,138.0,52.47273249]
[1741475595800,2.2084072,138.01,138.0,54.15359406]
[1741475596297,7.2e-06,138.01,138.0,54.15359406]
[1741475596609,7.2e-06,138.01,138.0,61.39989406]
[1741475597188,7.2e-06,138.01,138.0,61.25773249]
[1741475597809,7.2e-06,138.01,138.0,61.39989406]
[1741475598802,7.2e-06,138.01,138.0,62.4862697]
[1741475598999,7.2e-06,138.01,138.0,69.0250697]
[1741475599595,7.2e-06,138.01,138.0,69.0580697]
[1741475599808,0.03,138.02,138.01,18.64964886]
[1741475599987,0.03,138.02,138.01,38.42612552]
[1741475600785,0.03,138.02,138.01,39.71853249]
[1741475601613,0.03,138.02,138.01,39.86069406]
[1741475604312,0.03,138.02,138.0,0.033]
[1741475604501,0.03,138.02,138.0,13.85608363]
[1741475604707,0.03,138.02,138.0,0.033]
[1741475605399,0.03,138.02,138.0,13.85608363]
[1741475605604,0.03,138.02,138.0,21.10228363]
[1741475605905,0.03,138.02,138.01,13.82308363]
[1741475606212,0.03,138.02,138.0,13.85608363]
[1741475608407,0.03,138.02,138.0,21.10238363]
[1741475612009,0.03,138.02,138.0,7.2793]
[1741475612817,0.03,138.02,138.0,21.10238363]
[1741475614709,0.03,138.02,138.01,13.82308363]
[1741475615913,0.03,138.02,138.01,21.06888363]
[1741475619721,0.03,138.02,138.01,7.2458]
[1741475627927,0.03,138.02,138.0,0.033]
[1741475628227,0.03,138.02,138.0,7.2793]
[1741475629228,0.03,138.02,138.0,0.033]
[1741475633545,0.03,138.02,138.0,13.85608363]
[1741475634038,0.03,138.02,138.01,13.82308363]
[1741475634740,0.03,138.05,138.01,21.06888363]
[1741475635042,0.03,138.05,138.04,13.82308363]
[1741475637022,0.03,138.05,138.04,21.06728363]
[1741475646655,0.0001,138.05,138.04,39.71693249]
[1741475646862,0.0001,138.05,138.04,95.00926701]
[1741475650279,0.0001,138.05,138.04,101.30926701]
[1741475651154,0.0001,138.05,138.04,100.30926701]
[1741475651348,0.0001,138.06,138.05,1.64936157]
[1741475651547,0.0001,138.06,138.05,15.4724452]
[1741475652257,0.03,138.15,138.08,20.0]
[1741475652563,0.03,138.15,138.12,13.82308363]
[1741475653162,0.03,138.15,138.13,13.82308363]
[1741475653366,0.03,138.15,138.14,21.06208363]
[1741475653666,0.03,138.15,138.14,20.0]
[1741475653861,0.03,138.15,138.12,13.82308363]
[1741475656463,0.03,138.15,138.14,20.0]
[1741475656647,0.03,138.15,138.14,40.12308363]
[1741475657752,13.85308363,138.15,138.09,13.82308363]
[1741475658264,13.85308363,138.15,138.1,13.82308363]
[1741475658265,0.03,138.15,138.1,13.82308363]
[1741475658464,13.85308363,138.15,138.1,20.0]
[1741475658964,13.85308363,138.15,138.1,33.82308363]
[1741475659372,21.57076018,138.15,138.1,48.78166018]
[1741475659667,0.03,138.15,138.11,21.54076018]
[1741475661654,0.03,138.15,138.11,28.78116018]
[1741475662069,0.03,138.15,138.1,48.78176018]
[1741475665872,21.57076018,138.15,138.1,27.241]
[1741475666055,21.54076018,138.13,138.07,21.54076018]
[1741475666959,21.54076018,138.13,138.06,28.78396018]
[1741475666960,21.54076018,138.12,138.06,28.78396018]
[1741475667972,21.54076018,138.12,138.07,21.54076018]
[1741475668177,71.54076018,138.13,138.07,21.54076018]
[1741475668473,71.54076018,138.13,138.08,7.2421]
[1741475671481,21.54076018,138.12,138.08,7.2421]
[1741475671855,6.6208,138.11,138.08,7.2421]
[1741475673074,6.6208,138.11,138.06,21.57376018]
[1741475673282,6.6208,138.11,138.07,7.2427]
[1741475673687,6.6208,138.11,138.07,28.78346018]
[1741475679280,6.6208,138.11,138.07,21.03417368]
[1741475679466,1.5087,138.12,138.07,21.03417368]
[1741475679778,1.5087,138.12,138.08,13.79147368]
[1741475679980,1.5087,138.12,138.09,7.2416]
[1741475686760,1.5087,138.12,138.08,0.033]
[1741475687064,15.30017368,138.12,138.08,7.2751]
[1741475688878,72.54037368,138.12,138.08,0.033]
[1741475689078,19.93237368,138.1,138.08,0.033]
[1741475689268,13.79147368,138.09,138.08,0.033]
[1741475689675,19.93237368,138.1,138.08,0.033]
[1741475692059,27.17347368,138.1,138.08,0.033]
[1741475692375,13.79147368,138.09,138.08,0.033]
[1741475693262,19.93237368,138.1,138.08,0.033]
[1741475700569,13.79147368,138.09,138.08,0.033]
[1741475700982,32.44112254,138.09,138.08,0.033]
[1741475702985,13.79147368,138.09,138.08,0.033]
[1741475704993,21.03307368,138.09,138.08,0.033]
[1741475707092,39.68272254,138.09,138.08,0.033]
[1741475708371,122.54492254,138.09,138.08,0.033]
[1741475708874,43.24492254,138.09,138.08,0.033]
[1741475709600,56.2041,138.07,138.06,0.033]
[1741475709779,50.0,138.03,138.02,0.033]
[1741475709976,63.79147368,138.03,138.02,0.033]
[1741475710393,82.44112254,138.03,138.02,0.033]
[1741475712400,163.74112254,138.03,138.02,0.033]
[1741475712709,95.09147368,138.03,138.02,0.033]
[1741475713083,145.09147368,138.03,138.02,0.033]
[1741475713482,95.09147368,138.03,138.02,0.033]
[1741475716190,145.09147368,138.03,138.02,0.033]
[1741475717406,95.09147368,138.03,138.02,0.033]
[1741475722715,145.09147368,138.03,138.02,0.033]
[1741475726527,81.3,138.05,138.02,0.033]
[1741475727627,63.79147368,138.06,138.02,0.033]
[1741475727832,20.09147368,138.09,138.03,13.79147368]
[1741475728131,20.09147368,138.09,138.05,13.79147368]
[1741475728132,6.3,138.09,138.05,13.79147368]
[1741475728528,302.13147368,138.1,138.06,7.2432]
[1741475729435,13.79147368,138.09,138.06,7.2432]
[1741475730721,13.79147368,138.09,138.05,7.2437]
[1741475731236,95.09147368,138.12,138.07,13.79147368]
[1741475731610,13.79147368,138.11,138.06,13.79147368]
[1741475732125,63.79147368,138.11,138.06,13.79147368]
[1741475732845,63.79147368,138.11,138.07,7.2427]
[1741475734442,13.79147368,138.12,138.07,21.03417368]
[1741475734643,0.03,138.13,138.09,13.79147368]
[1741475734814,0.03,138.13,138.09,15.35047368]
[1741475735137,13.82147368,138.13,138.09,1.559]
[1741475735345,0.03,138.13,138.09,1.559]
[1741475735740,0.03,138.13,138.1,13.79147368]
[1741475735946,0.03,138.13,138.1,33.79147368]
[1741475736237,0.03,138.13,138.11,13.79147368]
[1741475736614,0.03,138.13,138.12,7.24]
[1741475736843,0.03,138.13,138.11,7.2404]
[1741475737220,0.03,138.13,138.11,21.03187368]
[1741475738638,0.03,138.13,138.1,27.2411]
[1741475739934,13.82147368,138.13,138.1,20.0]
[1741475740117,13.82147368,138.13,138.09,1.559]
[1741475740918,0.03,138.13,138.09,8.8005]
[1741475743041,0.03,138.13,138.09,22.59197368]
[1741475745222,0.03,138.13,138.11,13.79147368]
[1741475745844,0.03,138.13,138.09,22.59197368]
[1741475747151,0.03,138.13,138.09,8.8005]
[1741475747336,0.03,138.13,138.09,22.59197368]
[1741475747827,0.03,138.13,138.1,13.79147368]
[1741475748626,63.79147368,138.12,138.08,20.0]
[1741475749024,20.20147368,138.13,138.08,20.0]
[1741475749346,20.20147368,138.13,138.09,7.2416]
[1741475749530,13.79147368,138.12,138.08,27.242]
[1741475749843,13.79147368,138.12,138.06,15.33507368]
[1741475750045,13.79147368,138.12,138.07,7.2425]
[1741475750742,13.79147368,138.1,138.06,0.033]
[1741475753048,63.79147368,138.09,138.06,0.033]
[1741475753352,63.79147368,138.07,138.06,0.033]
[1741475753755,20.21147368,138.08,138.06,0.033]
[1741475753952,6.42,138.08,138.06,0.033]
[1741475756149,20.21147368,138.08,138.06,0.033]
[1741475756319,13.79147368,138.07,138.06,0.033]
[1741475756524,63.79147368,138.07,138.06,0.033]
[1741475757821,20.21147368,138.08,138.06,0.033]
[1741475760330,63.79147368,138.07,138.06,0.033]
[1741475761246,13.79147368,138.07,138.06,0.033]